bitfinex-derivatives/quotes_SOLF0:USTF0_20240820
["timestamp","ask_amount","ask_price","bid_price","bid_amount"]
[1724128805019,3.4128,146.43,146.39,3.46228215]
[1724128805225,13.9028,146.43,146.39,3.46228215]
[1724128806019,13.9028,146.43,146.4,3.4134]
[1724128808723,10.49,146.43,146.4,3.4134]
[1724128808925,3.4126,146.44,146.39,3.49693429]
[1724128809729,3.4126,146.44,146.41,3.413]
[1724128810128,15.1902,146.45,146.41,3.413]
[1724128810818,3.4125,146.44,146.41,3.413]
[1724128814132,3.4124,146.45,146.41,3.413]
[1724128814734,3.4125,146.44,146.41,3.413]
[1724128815231,3.4125,146.44,146.41,3.46320193]
[1724128815420,3.4124,146.45,146.41,3.46320193]
[1724128816235,3.4124,146.45,146.42,3.4129]
[1724128819331,3.4124,146.45,146.41,3.46330193]
[1724128820245,3.4124,146.45,146.42,3.4128]
[1724128821441,2.5285,146.49,146.41,0.05020193]
[1724128821442,2.5285,146.49,146.43,3.4127]
[1724128821639,10.49,146.47,146.45,0.04678842]
[1724128822239,3.412,146.47,146.45,0.04678842]
[1724128822837,13.902,146.46,146.45,0.04678842]
[1724128824548,13.9019,146.47,146.45,0.04678842]
[1724128826345,3.4116,146.48,146.45,0.04678842]
[1724128826549,10.49,146.51,146.45,10.53678842]
[1724128826945,3.4113,146.49,146.47,0.05086823]
[1724128828346,3.4116,146.48,146.47,0.05086823]
[1724128828653,10.49,146.48,146.44,3.4124]
[1724128829346,3.4119,146.47,146.43,3.4126]
[1724128829655,3.4119,146.47,146.44,0.04440475]
[1724128829954,0.04810715,146.46,146.44,0.04440475]
[1724128833762,13.9023,146.45,146.44,0.04440475]
[1724128834652,3.4123,146.45,146.44,0.04440475]
[1724128834856,13.9023,146.45,146.44,0.04440475]
[1724128837152,3.4128,146.43,146.39,3.4136]
[1724128837547,3.4128,146.43,146.38,10.49]
[1724128838458,3.4128,146.43,146.39,3.45955526]
[1724128838459,0.05183378,146.42,146.39,3.45955526]
[1724128839249,0.05183378,146.42,146.4,3.4134]
[1724128843150,0.05183378,146.42,146.39,3.37830436]
[1724128844861,0.05183378,146.42,146.41,3.4132]
[1724128845462,0.05183378,146.42,146.41,10.50405065]
[1724128845765,0.05183378,146.42,146.41,3.4132]
[1724128845962,0.05183378,146.42,146.41,10.50386938]
[1724128846965,10.49,146.47,146.41,7.09066938]
[1724128847157,10.49,146.47,146.42,7.09066938]
[1724128847359,3.4123,146.45,146.42,10.50346938]
[1724128847558,10.49,146.48,146.43,7.09066938]
[1724128847755,0.04341915,146.47,146.44,0.05035885]
[1724128848358,3.45531915,146.47,146.44,3.46275885]
[1724128848561,3.45531915,146.47,146.45,7.09066938]
[1724128849156,3.45531915,146.47,146.44,3.46275885]
[1724128849364,3.45531915,146.47,146.45,7.08875939]
[1724128850869,20.5,146.56,146.45,7.08875939]
[1724128851060,10.49,146.51,146.46,10.49]
[1724128851365,10.49,146.51,146.47,7.08875939]
[1724128851561,3.4111,146.5,146.47,7.08875939]
[1724128851958,3.4111,146.5,146.47,0.04649207]
[1724128852153,13.9009,146.51,146.47,10.54134431]
[1724128852354,13.9009,146.51,146.47,3.45819207]
[1724128852864,2.6178,146.53,146.48,10.49359981]
[1724128852865,3.4107,146.52,146.48,10.49359981]
[1724128853063,13.9007,146.52,146.48,3.4115]
[1724128853460,13.9007,146.52,146.47,3.45819207]
[1724128853660,13.9007,146.52,146.48,7.08276739]
[1724128853861,13.9007,146.52,146.47,3.45819207]
[1724128854056,13.9007,146.52,146.48,7.08443413]
[1724128854263,3.4107,146.52,146.48,10.49593413]
[1724128854566,13.9007,146.52,146.48,3.4115]
[1724128854766,13.9007,146.52,146.47,3.45819207]
[1724128854963,13.9007,146.52,146.48,7.08427011]
[1724128855367,3.4109,146.51,146.48,7.08427011]
[1724128856957,13.9009,146.51,146.48,7.08427011]
[1724128857563,3.4107,146.52,146.48,3.4115]
[1724128857871,3.4107,146.52,146.49,7.08164456]
[1724128858169,13.9007,146.52,146.49,7.08164456]
[1724128858462,13.9007,146.52,146.48,3.4115]
[1724128858667,13.9007,146.52,146.49,7.08718737]
[1724128859264,3.411,146.51,146.49,7.08718737]
[1724128859567,3.411,146.51,146.47,3.45829207]
[1724128859755,41.96,146.64,146.49,3.4113]
[1724128859955,41.96,146.64,146.53,0.0463704]
[1724128859956,10.49,146.54,146.53,0.0463704]
[1724128860164,13.9002,146.54,146.53,0.0463704]
[1724128864669,3.9836,146.59,146.53,10.5363704]
[1724128864969,3.9836,146.59,146.55,10.49]
[1724128865177,3.4092,146.58,146.55,10.49]
[1724128866069,7.3926,146.59,146.55,13.8999]
[1724128866270,3.46397291,146.63,146.55,10.49]
[1724128866466,10.49,146.61,146.55,10.49]
[1724128866666,3.4091,146.59,146.58,0.05191512]
[1724128867062,13.8991,146.59,146.58,0.05191512]
[1724128869074,3.41,146.55,146.5,10.49]
[1724128869280,10.49,146.54,146.47,13.98435312]
[1724128869777,3.4105,146.53,146.48,3.4114]
[1724128870166,0.05237903,146.52,146.49,3.46151359]
[1724128871572,0.05237903,146.52,146.49,0.05031359]
[1724128872176,0.05237903,146.52,146.49,7.13616548]
[1724128872573,3.46317903,146.52,146.49,7.13616548]
[1724128873579,3.46317903,146.52,146.49,0.05031359]
[1724128873770,10.49,146.51,146.49,7.13618067]
[1724128873971,10.49,146.51,146.49,0.05031359]
[1724128874680,3.4111,146.5,146.49,0.05031359]
[1724128875776,0.05237903,146.52,146.49,0.05031359]
[1724128876975,3.46317903,146.52,146.49,0.05031359]
[1724128877573,3.46317903,146.52,146.49,7.13748027]
[1724128877983,3.46317903,146.52,146.49,0.05031359]
[1724128878278,3.46317903,146.52,146.49,7.1379663]
[1724128878479,3.46317903,146.52,146.49,0.05031359]
[1724128878680,3.46317903,146.52,146.49,7.13778158]
[1724128879381,3.46317903,146.52,146.49,0.05031359]
[1724128879577,3.46317903,146.52,146.49,7.13797363]
[1724128879774,3.4109,146.51,146.49,7.13797363]
[1724128880079,3.4109,146.51,146.49,0.05031359]
[1724128880279,3.46307903,146.52,146.49,0.05031359]
[1724128880480,3.46307903,146.52,146.49,7.13871729]
[1724128880675,0.05237903,146.52,146.49,7.13871729]
[1724128880985,3.46307903,146.52,146.49,7.13871729]
[1724128882680,3.46307903,146.52,146.49,0.05031359]
[1724128883086,3.46307903,146.52,146.49,7.13751534]
[1724128883284,3.46307903,146.52,146.49,0.05031359]
[1724128883978,3.4109,146.51,146.49,0.05031359]
[1724128884983,3.46307903,146.52,146.49,0.05031359]
[1724128885185,3.46307903,146.52,146.49,7.13829434]
[1724128885377,0.05237903,146.52,146.49,7.13829434]
[1724128885582,0.05237903,146.52,146.49,3.46161359]
[1724128885984,0.05237903,146.52,146.5,10.49]
[1724128886187,0.05237903,146.52,146.5,13.9009]
[1724128886487,0.05237903,146.52,146.49,0.05031359]
[1724128886881,3.46317903,146.52,146.49,0.05031359]
[1724128887587,3.46317903,146.52,146.49,7.13787461]
[1724128891988,3.46317903,146.52,146.49,3.46141359]
[1724128892181,3.46317903,146.52,146.5,7.08762643]
[1724128892777,3.46317903,146.52,146.49,13.95141359]
[1724128892982,0.05237903,146.52,146.5,10.49733803]
[1724128893184,0.05237903,146.52,146.51,7.08653803]
[1724128894386,3.46277903,146.52,146.51,7.08653803]
[1724128894588,3.46277903,146.52,146.49,13.95131359]
[1724128894793,3.46277903,146.52,146.5,7.0857995]
[1724128894993,0.05237903,146.52,146.5,7.0857995]
[1724128895193,3.4106,146.51,146.49,0.05031359]
[1724128895586,3.4106,146.51,146.49,7.13839785]
[1724128895782,3.4106,146.51,146.49,0.05031359]
[1724128896090,3.46287903,146.52,146.49,10.54952899]
[1724128896290,3.46287903,146.52,146.5,7.0881154]
[1724128896792,3.4106,146.51,146.5,7.0881154]
[1724128897085,3.4106,146.51,146.49,0.05031359]
[1724128897391,3.4106,146.51,146.49,7.13887559]
[1724128897593,3.4109,146.5,146.49,7.13887559]
[1724128898193,3.4109,146.5,146.49,0.05031359]
[1724128898386,0.05237903,146.52,146.49,3.46141359]
[1724128898586,0.05237903,146.52,146.5,17.578562]
[1724128898889,0.05237903,146.52,146.5,10.49]
[1724128899092,3.46287903,146.52,146.5,10.49]
[1724128899588,3.46287903,146.52,146.51,7.08660734]
[1724128899799,3.46287903,146.52,146.5,10.49]
[1724128900294,3.46287903,146.52,146.51,7.08565519]
[1724128900591,3.46287903,146.52,146.51,7.08565673]
[1724128901987,3.46287903,146.52,146.5,10.49]
[1724128902186,0.05237903,146.52,146.51,10.49]
[1724128902498,10.49,146.58,146.51,17.57529015]
[1724128902691,14.4036,146.6,146.54,3.4099]
[1724128903490,3.4092,146.58,146.56,0.05249693]
[1724128904697,3.4092,146.57,146.56,0.05249693]
[1724128907394,3.4091,146.58,146.56,0.05249693]
[1724128909304,3.4092,146.57,146.56,0.05249693]
[1724128911498,3.4091,146.58,146.56,0.05249693]
[1724128912100,3.4089,146.59,146.56,0.05249693]
[1724128912903,20.5,146.68,146.56,0.05249693]
[1724128913105,10.49,146.63,146.55,10.49]
[1724128913298,3.4086,146.6,146.56,10.48989451]
[1724128913499,3.4086,146.6,146.58,0.04846938]
[1724128914190,3.4084,146.61,146.58,0.04846938]
[1724128914399,1.339,146.63,146.58,7.12545704]
[1724128914697,1.339,146.63,146.58,0.04846938]
[1724128915289,3.4082,146.62,146.58,10.5345641]
[1724128915505,3.4082,146.62,146.58,3.45736938]
[1724128915804,1.339,146.63,146.58,3.45736938]
[1724128916298,3.4082,146.62,146.58,3.45736938]
[1724128917793,11.829,146.63,146.58,3.45736938]
[1724128917794,3.4083,146.61,146.58,3.45736938]
[1724128918303,11.829,146.63,146.58,3.45736938]
[1724128918501,3.4082,146.62,146.58,3.45736938]
[1724128918702,11.829,146.63,146.58,0.04846938]
[1724128918996,3.4085,146.61,146.58,0.04846938]
[1724128919900,10.49,146.6,146.58,0.04846938]
[1724128920109,10.49,146.59,146.52,10.49]
[1724128920397,3.4093,146.57,146.54,3.4099]
[1724128920606,10.49,146.59,146.54,3.4099]
[1724128921206,3.4092,146.58,146.55,0.04323431]
[1724128921405,3.45650282,146.58,146.55,0.04323431]
[1724128921901,10.49,146.57,146.55,0.04323431]
[1724128922206,10.49,146.56,146.48,4.85056452]
[1724128922409,13.9001,146.54,146.5,3.4108]
[1724128922703,13.9001,146.54,146.48,10.49]
[1724128922704,10.49,146.54,146.48,13.83928526]
[1724128922906,3.4102,146.53,146.49,3.411]
[1724128923500,0.04683767,146.52,146.5,0.05120853]
[1724128923999,3.45723767,146.52,146.5,0.05120853]
[1724128924200,0.04683767,146.52,146.5,0.05120853]
[1724128925210,0.04683767,146.52,146.5,7.1356112]
[1724128925409,0.04683767,146.52,146.51,7.08440267]
[1724128926604,0.04683767,146.52,146.51,7.0843811]
[1724128929507,0.04683767,146.52,146.51,7.08439712]
[1724128929901,0.04683767,146.52,146.51,10.49499712]
[1724128932517,0.04683767,146.52,146.51,7.08439712]
[1724128933108,0.04683767,146.52,146.51,10.49499712]
[1724128933504,0.04683767,146.52,146.5,10.54120853]
[1724128933711,3.45723767,146.52,146.51,7.08398007]
[1724128933916,0.04683767,146.52,146.51,7.08398007]
[1724128934106,3.45723767,146.52,146.51,7.08398007]
[1724128934309,3.45723767,146.52,146.5,0.05120853]
[1724128935407,3.45723767,146.52,146.51,7.08475134]
[1724128936216,0.04683767,146.52,146.51,7.08475134]
[1724128937716,0.04683767,146.52,146.51,7.08530712]
[1724128939015,0.04683767,146.52,146.51,10.49590712]
[1724128939217,0.04683767,146.52,146.51,20.98590712]
[1724128939613,10.49,146.6,146.51,17.57530712]
[1724128939817,10.49,146.6,146.55,10.49]
[1724128940019,3.409,146.58,146.56,7.08530712]
[1724128940613,3.45902042,146.58,146.56,7.13203004]
[1724128940812,0.05002042,146.58,146.56,7.13203004]
[1724128941415,0.05002042,146.58,146.56,0.04672292]
[1724128941817,0.05002042,146.58,146.56,3.45612292]
[1724128944624,0.05002042,146.58,146.57,3.4092]
[1724128945622,0.05002042,146.58,146.57,13.8992]
[1724128945921,17.7886,146.63,146.59,3.4087]
[1724128946412,14.3806,146.63,146.6,3.4085]
[1724128946821,14.3806,146.63,146.59,3.4086]
[1724128947022,14.3806,146.63,146.6,0.04854246]
[1724128950214,3.8906,146.63,146.6,0.04854246]
[1724128950422,103.35015508,146.7,146.6,0.04854246]
[1724128950627,10.49,146.65,146.59,10.49]
[1724128950925,3.4074,146.66,146.61,3.45303593]
[1724128951126,10.49,146.65,146.61,3.45303593]
[1724128951429,3.4071,146.67,146.61,0.04473593]
[1724128951625,13.8971,146.67,146.61,0.04473593]
[1724128951924,10.49,146.63,146.61,0.04473593]
[1724128952624,10.49,146.65,146.61,0.04473593]
[1724128953025,13.8975,146.65,146.61,0.04473593]
[1724128953226,10.49,146.65,146.61,0.04473593]
[1724128953625,10.49,146.65,146.61,3.45293593]
[1724128955830,10.49,146.65,146.62,3.4081]
[1724128956533,13.8973,146.66,146.62,3.4081]
[1724128957719,10.49,146.66,146.61,0.04473593]
[1724128959826,13.8972,146.66,146.62,3.4079]
[1724128960230,27.26,146.79,146.61,10.53473593]
[1724128960428,13.8965,146.69,146.65,3.4072]
[1724128960626,13.8965,146.69,146.66,0.04820222]
[1724128961230,3.4063,146.7,146.66,3.45530222]
[1724128961431,10.49,146.69,146.66,3.45530222]
[1724128962834,10.49,146.69,146.66,0.04820222]
[1724128963221,13.8965,146.69,146.66,0.04820222]
[1724128964325,3.4065,146.69,146.66,0.04820222]
[1724128964533,13.8965,146.69,146.66,0.04820222]
[1724128965225,13.8965,146.69,146.66,3.45530222]
[1724128967131,13.8965,146.69,146.54,40.61317791]
[1724128967132,10.49,146.67,146.54,40.61317791]
[1724128967436,10.49,146.64,146.58,10.49]
[1724128967637,10.49,146.64,146.6,3.4085]
[1724128968244,0.04820222,146.63,146.61,0.04928382]
[1724128968636,3.45610222,146.63,146.61,0.04928382]
[1724128969339,0.04820222,146.63,146.61,0.04928382]
[1724128971141,10.49,146.62,146.61,0.04928382]
[1724128971335,10.49,146.58,146.51,10.49]
[1724128972042,13.8992,146.58,146.52,3.40606968]
[1724128972242,0.05029417,146.56,146.54,0.04874598]
[1724128975451,0.05029417,146.56,146.54,3.45884598]
[1724128975653,0.05029417,146.56,146.54,0.04874598]
[1724128979353,0.05029417,146.56,146.54,10.53874598]
[1724128980243,0.05029417,146.56,146.54,13.94884598]
[1724128980447,0.05029417,146.56,146.54,10.53874598]
[1724128983352,0.05029417,146.56,146.54,13.94884598]
[1724128984954,0.05029417,146.56,146.55,3.4099]
[1724128985253,10.49,146.61,146.55,10.49]
[1724128985459,3.4089,146.6,146.56,3.4096]
[1724128986054,3.45619187,146.59,146.57,0.04339589]
[1724128987455,3.4092,146.58,146.57,0.04339589]
[1724128989967,0.04719187,146.59,146.53,3.36337849]
[1724128990261,0.04719187,146.59,146.52,10.49]
[1724128990457,3.4092,146.58,146.54,10.49]
[1724128990864,0.0508092,146.57,146.55,0.04895145]
[1724128991163,0.0508092,146.57,146.55,3.50217862]
[1724128991961,0.0508092,146.57,146.55,6.91207862]
[1724128992364,0.0508092,146.57,146.56,3.4097]
[1724128993670,0.0508092,146.57,146.55,0.04895145]
[1724128994567,3.4604092,146.57,146.55,0.04895145]
[1724128996862,3.4097,146.56,146.55,0.04895145]
[1724129000569,13.9503092,146.57,146.55,0.04895145]
[1724129008163,3.4097,146.56,146.55,0.04895145]
[1724129008371,13.8997,146.56,146.55,0.04895145]
[1724129009072,13.8997,146.56,146.44,6.8249]
[1724129009073,10.49,146.52,146.45,2.6217]
[1724129009276,3.45744782,146.56,146.45,16.5238]
[1724129009277,10.49,146.5,146.45,16.5238]
[1724129009466,10.49,146.5,146.45,13.1117]
[1724129009866,10.49,146.5,146.45,13.9022]
[1724129010068,10.5351999,146.49,146.46,0.0469283]
[1724129010375,3.4116,146.48,146.46,0.04940174]
[1724129013682,13.95066188,146.49,146.46,0.04940174]
[1724129016174,3.4116,146.48,146.46,0.04940174]
[1724129021978,13.9016,146.48,146.46,0.04940174]
[1724129028374,10.49,146.48,146.46,3.46140174]
[1724129028577,10.49,146.48,146.46,0.04940174]
[1724129028879,13.9018,146.48,146.46,0.04940174]
[1724129030280,3.4118,146.47,146.46,0.04940174]
[1724129030681,13.9018,146.47,146.46,0.04940174]
[1724129030877,10.49,146.47,146.3,27.26]
[1724129031074,10.49,146.44,146.38,13.85712846]
[1724129031275,10.49,146.44,146.41,3.413]
[1724129031483,10.49,146.44,146.38,13.85712846]
[1724129031890,10.49,146.44,146.42,3.4129]
[1724129032090,0.05031592,146.43,146.42,3.4129]
[1724129034293,0.05031592,146.43,146.42,13.9029]
[1724129035991,0.05031592,146.43,146.42,3.4129]
[1724129043395,0.05031592,146.43,146.41,3.4129]
[1724129044195,0.05031592,146.43,146.42,3.4128]
[1724129048005,0.05031592,146.43,146.41,3.4129]
[1724129050404,0.05031592,146.43,146.42,3.4128]
[1724129066712,0.05031592,146.43,146.41,3.413]
[1724129067817,0.05031592,146.43,146.4,0.04464237]
[1724129068208,10.49,146.42,146.4,0.04464237]
[1724129068421,0.05031592,146.43,146.4,0.04464237]
[1724129069821,3.46311592,146.43,146.41,3.4132]
[1724129070020,3.46311592,146.43,146.4,0.04464237]
[1724129070021,0.05031592,146.43,146.4,0.04464237]
[1724129072019,0.05031592,146.43,146.42,3.4129]
[1724129074922,1.3548,146.47,146.45,3.4121]
[1724129075818,4.81535932,146.47,146.45,3.46035687]
[1724129077820,3.46055932,146.47,146.45,3.46035687]
[1724129081122,0.04875932,146.47,146.45,3.46035687]
[1724129082724,0.04875932,146.47,146.46,3.412]
[1724129082921,0.04875932,146.47,146.45,0.04825687]
[1724129083122,0.04875932,146.47,146.45,3.46025687]
[1724129083519,0.04875932,146.47,146.45,0.04825687]
[1724129084825,0.04875932,146.47,146.46,3.412]
[1724129094232,0.04875932,146.47,146.46,6.90772601]
[1724129095529,13.9009,146.51,146.48,3.4113]
[1724129096533,13.95055486,146.51,146.48,3.45811342]
[1724129096734,3.4111,146.5,146.48,3.45811342]
[1724129097335,13.95055486,146.51,146.48,3.45811342]
[1724129097533,10.53965486,146.51,146.48,0.04681342]
[1724129098836,10.53965486,146.51,146.5,3.4111]
[1724129099527,0.04965486,146.51,146.5,3.4111]
[1724129102043,13.95055486,146.51,146.48,0.04681342]
[1724129102937,13.95055486,146.51,146.49,3.4113]
[1724129103138,10.49,146.5,146.48,0.04681342]
[1724129103532,3.4113,146.49,146.48,0.04681342]
[1724129105045,13.9013,146.49,146.48,0.04681342]
[1724129105235,10.53965486,146.51,146.48,0.04681342]
[1724129105644,13.95065486,146.51,146.48,3.45821342]
[1724129106038,0.04965486,146.51,146.48,0.04681342]
[1724129106442,0.04965486,146.51,146.49,3.4112]
[1724129106945,0.04965486,146.51,146.5,3.4111]
[1724129109149,13.0061,146.56,146.53,3.4103]
[1724129109344,15.1655,146.56,146.53,3.4103]
[1724129110246,15.20571085,146.56,146.53,3.45512777]
[1724129113461,10.49,146.54,146.53,0.04482777]
[1724129114953,3.41,146.55,146.53,0.04482777]
[1724129119563,0.04021085,146.56,146.54,3.4101]
[1724129120267,3.44991085,146.56,146.54,3.4101]
[1724129123188,3.44991085,146.56,146.53,3.45512777]
[1724129124277,3.44991085,146.56,146.54,3.4101]
[1724129125269,0.04021085,146.56,146.54,3.4101]
[1724129129874,0.04021085,146.56,146.55,3.4099]
[1724129131383,13.0583,146.62,146.58,3.4092]
[1724129131774,2.5683,146.62,146.58,3.4092]
[1724129132480,2.5683,146.62,146.58,3.45715834]
[1724129132882,3.4089,146.6,146.58,3.45715834]
[1724129133975,1.2783,146.67,146.58,10.53795834]
[1724129134180,3.8402,146.67,146.61,0.05194044]
[1724129134377,3.4078,146.64,146.61,3.46034044]
[1724129135873,10.49,146.65,146.62,3.4082]
[1724129135874,13.8976,146.65,146.62,3.4082]
[1724129136284,3.4076,146.65,146.62,3.4082]
[1724129137686,13.8975,146.66,146.63,3.408]
[1724129137884,3.4075,146.66,146.63,3.408]
[1724129140491,10.49,146.66,146.61,0.05194044]
[1724129141080,3.8402,146.67,146.61,10.54194044]
[1724129141592,3.4075,146.66,146.62,3.4081]
[1724129144692,3.4076,146.65,146.62,3.4081]
[1724129147284,14.3302,146.67,146.62,3.4083]
[1724129147489,14.3302,146.67,146.61,10.54194044]
[1724129147796,14.3302,146.67,146.61,13.95024044]
[1724129148087,14.3302,146.67,146.61,10.54194044]
[1724129148281,3.4075,146.66,146.63,3.408]
[1724129149787,3.4076,146.65,146.63,3.408]
[1724129150291,14.3302,146.67,146.63,3.408]
[1724129150495,3.4075,146.66,146.63,3.408]
[1724129150899,10.49,146.68,146.64,3.4078]
[1724129151090,3.4074,146.66,146.64,3.4078]
[1724129151284,3.4074,146.66,146.65,0.05004805]
[1724129152901,3.4072,146.67,146.65,0.05004805]
[1724129157099,3.4074,146.66,146.65,0.05004805]
[1724129159808,3.4072,146.67,146.65,0.05004805]
[1724129160197,71.32491825,146.71,146.65,0.05004805]
[1724129160404,81.81491825,146.71,146.65,0.05004805]
[1724129161004,3.4068,146.69,146.66,3.4073]
[1724129169507,3.4068,146.69,146.67,3.4071]
[1724129173312,3.4065,146.7,146.67,3.4071]
[1724129174405,3.4065,146.7,146.68,3.4069]
[1724129174801,3.4065,146.7,146.67,10.49]
[1724129176914,3.4065,146.7,146.68,3.4069]
[1724129178315,72.00421825,146.71,146.68,3.4068]
[1724129178706,72.00421825,146.71,146.68,3.45440915]
[1724129178909,72.00421825,146.71,146.68,13.94440915]
[1724129182412,11.8024,146.76,146.7,10.49]
[1724129182805,11.8024,146.76,146.72,0.0466112]
[1724129183116,3.4057,146.73,146.72,0.0466112]
[1724129184117,3.4056,146.74,146.72,0.0466112]
[1724129186512,11.8024,146.76,146.72,0.0466112]
[1724129187821,3.4057,146.73,146.72,0.0466112]
[1724129191425,3.4056,146.74,146.72,0.0466112]
[1724129192020,1.3085,146.79,146.73,10.49]
[1724129192330,13.1517,146.81,146.75,10.49]
[1724129192931,1.2984,146.81,146.77,0.04657609]
[1724129193130,11.7884,146.81,146.77,0.04657609]
[1724129194035,11.7884,146.81,146.66,3.44440247]
[1724129194036,10.49,146.78,146.72,10.49]
[1724129194534,3.4052,146.76,146.73,3.4057]
[1724129195030,3.45172313,146.76,146.73,3.45394704]
[1724129195234,0.04652313,146.76,146.73,3.45394704]
[1724129195732,3.4037,146.82,146.73,0.04824704]
[1724129195931,1.3306,146.85,146.78,10.49]
[1724129196130,1.3306,146.85,146.77,6.80957241]
[1724129196323,10.49,146.84,146.74,1.3716]
[1724129196529,10.49,146.84,146.77,10.49]
[1724129196723,10.49,146.82,146.77,10.49]
[1724129196929,10.49,146.81,146.75,10.49]
[1724129197132,10.49,146.81,146.79,0.0435885]
[1724129197333,1.2861,146.83,146.73,10.49]
[1724129197334,10.49,146.8,146.73,10.49]
[1724129197531,10.49,146.75,146.67,2.685]
[1724129197833,10.49,146.71,146.64,1.3352]
[1724129198032,10.49,146.69,146.64,10.49]
[1724129198237,10.49,146.69,146.65,1.02751588]
[1724129198434,10.49,146.69,146.64,10.49]
[1724129198735,0.04364146,146.68,146.65,10.53446278]
[1724129199324,0.04364146,146.68,146.66,3.4073]
[1724129199529,10.49,146.71,146.65,10.49]
[1724129199734,10.49,146.71,146.61,1.3716]
[1724129199929,10.49,146.71,146.64,10.49]
[1724129200125,0.04364146,146.68,146.66,0.05202809]
[1724129200429,0.04364146,146.68,146.66,10.54202809]
[1724129200633,0.04364146,146.68,146.67,10.49]
[1724129200829,0.04364146,146.68,146.67,13.8971]
[1724129202338,1.2861,146.74,146.67,10.49]
[1724129202530,67.00406638,146.76,146.71,10.49]
[1724129202933,70.40916638,146.76,146.71,13.896]
[1724129203140,67.00406638,146.76,146.71,10.49]
[1724129203339,67.00406638,146.76,146.72,10.49]
[1724129203539,1.2471,146.78,146.74,10.49]
[1724129203940,1.2471,146.78,146.73,10.49]
[1724129204138,11.7371,146.78,146.73,10.49]
[1724129204342,15.1417,146.78,146.73,3.4057]
[1724129204535,10.49,146.77,146.72,0.04696354]
[1724129204933,3.4051,146.76,146.72,3.45286354]
[1724129205442,11.7371,146.78,146.73,3.4056]
[1724129205638,11.7371,146.78,146.72,0.04696354]
[1724129206544,3.4049,146.77,146.72,3.45286354]
[1724129206940,11.7371,146.78,146.72,3.45286354]
[1724129207140,10.49,146.76,146.72,3.45286354]
[1724129207848,13.8951,146.76,146.72,3.45286354]
[1724129208248,10.49,146.76,146.72,3.45286354]
[1724129208650,10.49,146.76,146.72,0.04696354]
[1724129209752,13.8952,146.76,146.72,3.45286354]
[1724129209950,13.8952,146.76,146.72,0.04696354]
[1724129210245,10.49,146.76,146.72,0.04696354]
[1724129211748,13.8951,146.76,146.72,3.45296354]
[1724129211949,10.49,146.76,146.72,0.04696354]
[1724129212450,2.6436,146.77,146.72,0.04696354]
[1724129212643,13.1336,146.77,146.72,0.04696354]
[1724129213151,3.4052,146.76,146.72,3.45276354]
[1724129214239,16.5385,146.77,146.73,3.4057]
[1724129214440,2.6436,146.77,146.72,10.53696354]
[1724129214651,1.2471,146.78,146.73,10.49]
[1724129214852,1.2471,146.78,146.75,3.4053]
[1724129215043,1.2471,146.78,146.75,0.0473406]
[1724129216653,4.6517,146.78,146.75,0.0473406]
[1724129217547,2.6054,146.85,146.75,0.0473406]
[1724129217752,10.49,146.81,146.79,0.04595993]
[1724129217953,10.49,146.8,146.79,0.04595993]
[1724129218755,13.8941,146.8,146.79,0.04595993]
[1724129219141,3.4041,146.8,146.79,0.04595993]
[1724129223457,3.4041,146.8,146.62,100.41272943]
[1724129223458,52.45,146.8,146.62,100.41272943]
[1724129223652,10.49,146.73,146.63,59.83527916]
[1724129223852,10.49,146.72,146.69,3.4065]
[1724129224556,10.53371246,146.72,146.7,3.4064]
[1724129224753,10.53371246,146.72,146.69,0.04757995]
[1724129225357,10.53371246,146.72,146.69,3.45407995]
[1724129226251,0.04371246,146.72,146.7,3.4064]
[1724129227061,10.53371246,146.72,146.69,0.04757995]
[1724129227451,13.93971246,146.72,146.69,0.04757995]
[1724129228566,10.53371246,146.72,146.69,0.04757995]
[1724129229263,13.93991246,146.72,146.69,0.04757995]
[1724129229767,3.4064,146.7,146.69,0.04757995]
[1724129229956,10.49,146.71,146.61,2.6096]
[1724129230162,10.49,146.68,146.61,2.6096]
[1724129230360,13.8969,146.68,146.64,3.4077]
[1724129230864,13.8969,146.68,146.62,10.49]
[1724129231364,13.8969,146.68,146.61,2.6096]